[Event "Turkish Cup 2022"]
[Site "Sakarya"]
[Date "2022.03.29"]
[Round "7.19"]
[White "Oktem, Ege Tuna"]
[Black "Bacak, Muhammed Kaan"]
[Result "1/2-1/2"]
[ECO "B22"]
[WhiteElo "1614"]
[BlackElo "2155"]
[Annotator "TA"]
[PlyCount "72"]
[EventDate "2022.03.25"]
[EventType "swiss"]
[EventCountry "TUR"]
[SourceTitle "playchess.com"]
[Source "ChessBase"]
[SourceQuality "1"]
[TimeControl "5400+30"]

{[%evp 21,72,39,29,35,29,31,31,32,54,49,50,40,62,48,77,68,71,56,94,97,97,88,105,106,123,94,104,76,96,93,112,108,164,163,158,154,239,138,133,124,141,75,75,66,66,66,81,66,66,66,81,22,52]} 1. e4 {[%cal Be2e4,Be4e5][%mdl 32]} c5 2. c3 Nf6 3. e5 Nd5 4. Nf3 e6 5. d4 cxd4 6. cxd4 b6 7. Bd3 Ba6 8. O-O Be7 9. Nc3 Nxc3 10. bxc3 Bxd3 11. Qxd3 O-O {[%emt 0:04:00]} 12. Bf4 {[%emt 0:03:30] B22: Sicilian: 2 c3.} Nc6 {[%emt 0:05:30]} 13. d5 {[%emt 0:03:30]} exd5 {[%emt 0:00:30]} 14. Qxd5 {[%emt 0:00:30] White is slightly better.} Qc7 {[%emt 0:03:30]} 15. Rad1 {[%emt 0:01:30]} Rad8 {[%emt 0:00:30]} 16. Rfe1 {[%emt 0:02:30]} Qc8 {[%emt 0:07:30] [#]} 17. Rd3 $146 {[%emt 0:02:30]} ({Predecessor:} 17. Ng5 Bxg5 18. Bxg5 Rde8 19. f4 h6 20. Bh4 Nb8 21. Rd3 Qc6 22. c4 Rc8 23. Re4 {0-1 (55) Bergstrom,R-Murugan,K (2395) Gausdal 1991}) 17... Kh8 {[%emt 0:25:30]} 18. h3 {[%emt 0:13:30]} h6 {[%emt 0:12:30]} 19. Qe4 {[%emt 0:17:30]} Na5 {[%emt 0:05:30]} 20. Nd4 {[%emt 0:14:30][%cal Bf3d4,Bd4f5,Bf5d6][%mdl 32] Strongly threatening Nf5. &Bianco is much more active.} d5 {[%emt 0:03:30]} 21. Qf5 {[%emt 0:02:30] Black must now prevent Qh5.} ({Much less strong is} 21. exd6 Bxd6 22. Bxd6 Rxd6 $11) 21... Qxf5 {[%emt 0:11:30]} 22. Nxf5 {[%emt 0:00:30]} Ba3 {[%emt 0:01:34]} 23. Red1 {[%emt 0:00:30]} Rc8 {[%emt 0:02:29]} 24. Nd6 {[%emt 0:11:30]} Rc5 {[%emt 0:07:28]} 25. Be3 {[%emt 0:00:30]} Rc6 {[%emt 0:00:30]} 26. Rxd5 {[%emt 0:00:30]} Nc4 {[%emt 0:00:30] [#]} (26... Bxd6 $16 27. exd6 Rd8) 27. Nxc4 $1 $18 {[%emt 0:00:30]} Rxc4 {[%emt 0:00:30]} 28. Rd7 {[%emt 0:00:30]} Rxc3 {[%emt 0:00:30] [#]} (28... Bb2 $16 {was necessary.} 29. Rxa7 Bxc3) 29. Rxa7 {[%emt 0:00:30]} ({White has to play} 29. e6 $1 $18) 29... Bc5 $16 {[%emt 0:00:48]} 30. Bxc5 {[%emt 0:00:30]} Rxc5 {[%emt 0:00:00][%cal Bc3c5,Bc5e5,Be5e2,Be2a2][%mdl 32]} 31. Rdd7 {[%emt 0:00:30]} (31. f4 $142) 31... Rxe5 {[%emt 0:00:00]} 32. Rxf7 {[%emt 0:00:30]} Rxf7 {[%emt 0:00:24]} 33. Rxf7 {[%emt 0:00:30] KR-KR} Re2 {[%emt 0:00:30]} 34. Rb7 {[%emt 0:00:00]} Rxa2 {[%emt 0:00:00]} 35. Rxb6 {[%emt 0:00:00]} Kh7 {[%emt 0:00:13]} 36. g4 {[%emt 0:00:00]} ({White should try} 36. Rb5 $16) 36... g5 {[%emt 0:00:00] Weighted Error Value: White=0.18 (very precise) /Black=0.15 (very precise)} 1/2-1/2

[Event "Turkish Cup 2022"]
[Site "Sakarya"]
[Date "2022.03.29"]
[Round "7.20"]
[White "Ulu, Ekrem"]
[Black "Tarhan, Adar"]
[Result "0-1"]
[ECO "D02"]
[WhiteElo "1692"]
[BlackElo "2125"]
[Annotator "NA"]
[PlyCount "102"]
[EventDate "2022.03.25"]
[EventType "swiss"]
[EventCountry "TUR"]
[SourceTitle "playchess.com"]
[Source "ChessBase"]
[SourceQuality "1"]
[TimeControl "5400+30"]

1. d4 d5 2. Bf4 Nf6 3. e3 Bf5 {[%emt 0:01:00]} 4. Nf3 {[%emt 0:07:30]} e6 {[%emt 0:01:30]} 5. Bd3 {[%emt 0:01:30]} Bg6 {[%emt 0:01:30]} 6. O-O {[%emt 0:14:30]} Bd6 {[%emt 0:02:30]} 7. c3 {[%emt 0:33:30]} Nc6 {[%emt 0:04:30]} 8. Re1 {[%emt 0:02:30]} Ne7 {[%emt 0:03:30]} 9. Ne5 {[%emt 0:04:30]} c6 {[%emt 0:02:30]} 10. Qc2 {[%emt 0:07:30]} Bxd3 {[%emt 0:03:30]} 11. Nxd3 {[%emt 0:01:30]} Ng6 {[%emt 0:01:30]} 12. Bxd6 {[%emt 0:00:30]} Qxd6 {[%emt 0:00:00]} 13. Nd2 {[%emt 0:00:30]} h5 {[%emt 0:10:00]} 14. Nf3 {[%emt 0:02:30]} Ne4 {[%emt 0:03:30]} 15. Nde5 {[%emt 0:04:23]} Ne7 {[%emt 0:00:30]} 16. Nd2 {[%emt 0:06:50]} Nxd2 {[%emt 0:02:30]} 17. Qxd2 {[%emt 0:00:01]} f6 {[%emt 0:02:30]} 18. Nd3 {[%emt 0:00:09]} O-O-O {[%emt 0:01:30]} 19. b4 {[%emt 0:01:42]} e5 {[%emt 0:00:30]} 20. a4 {[%emt 0:00:13]} e4 {[%emt 0:01:30]} 21. Nc5 {[%emt 0:00:06]} b6 {[%emt 0:00:30]} 22. Nb3 {[%emt 0:02:57]} Rh6 {[%emt 0:01:30]} 23. Qe2 {[%emt 0:00:07]} Kd7 {[%emt 0:00:30]} 24. Qa6 {[%emt 0:02:00]} Rg6 {[%emt 0:02:30]} 25. Qxa7+ {[%emt 0:00:49]} Ke8 {[%emt 0:00:30]} 26. Qxb6 {[%emt 0:01:21]} Qe6 {[%emt 0:00:00]} 27. Qa6 {[%emt 0:01:58]} Nf5 {[%emt 0:02:00]} 28. Nd2 {[%emt 0:02:31]} Nh4 {[%emt 0:03:30]} 29. g3 {[%emt 0:00:06]} Nf5 {[%emt 0:03:30]} 30. b5 {[%emt 0:00:30]} Rc8 {[%emt 0:00:30]} 31. b6 {[%emt 0:00:30]} h4 {[%emt 0:00:30]} 32. Qf1 {[%emt 0:02:04]} hxg3 {[%emt 0:01:30]} 33. fxg3 {[%emt 0:00:30]} Nxg3 {[%emt 0:00:30]} 34. hxg3 {[%emt 0:00:30]} Rxg3+ {[%emt 0:00:30]} 35. Qg2 {[%emt 0:00:30]} Qh3 {[%emt 0:00:30]} 36. Re2 {[%emt 0:00:30]} Rxg2+ {[%emt 0:00:30]} 37. Rxg2 {[%emt 0:00:30]} Qxe3+ {[%emt 0:00:30]} 38. Kf1 {[%emt 0:00:30]} Qxc3 {[%emt 0:00:30]} 39. Rb1 {[%emt 0:00:30]} Kf7 {[%emt 0:00:30]} 40. b7 {[%emt 0:00:30]} Rb8 {[%emt 0:00:30]} 41. Rb3 {[%emt 0:00:00]} Qxd4 {[%emt 0:00:00]} 42. a5 {[%emt 0:00:00]} Qa7 {[%emt 0:00:00]} 43. Rbg3 {[%emt 0:00:34]} g5 {[%emt 0:00:30]} 44. Nb3 {[%emt 0:00:30]} Rxb7 {[%emt 0:00:30]} 45. Ra2 {[%emt 0:02:11]} e3 {[%emt 0:00:30]} 46. Ra3 {[%emt 0:00:30]} d4 {[%emt 0:00:30]} 47. Rg2 {[%emt 0:00:30]} d3 {[%emt 0:00:30]} 48. Rga2 {[%emt 0:00:30]} e2+ {[%emt 0:00:30]} 49. Rxe2 {[%emt 0:00:30]} dxe2+ {[%emt 0:00:30]} 50. Kxe2 {[%emt 0:00:30]} Qa6+ {[%emt 0:00:30]} 51. Kd2 {[%emt 0:00:30]} Rxb3 {[%emt 0:00:30]} 0-1

[Event "Turkish Cup 2022"]
[Site "Sakarya"]
[Date "2022.03.29"]
[Round "7.21"]
[White "Kandaz, Berat Efe"]
[Black "Caputcuoglu, Zeki Berke"]
[Result "1-0"]
[ECO "D97"]
[WhiteElo "1519"]
[BlackElo "2095"]
[Annotator "TA"]
[PlyCount "91"]
[EventDate "2022.03.25"]
[EventType "swiss"]
[EventCountry "TUR"]
[SourceTitle "playchess.com"]
[Source "ChessBase"]
[SourceQuality "1"]
[TimeControl "5400+30"]

{[%evp 33,91,12,39,26,50,16,67,0,91,0,71,81,106,100,192,215,216,206,210,202,314,209,233,240,262,266,320,209,412,422,418,439,438,439,439,434,412,383,433,433,476,471,462,477,486,465,565,567,541,543,679,669,679,673,666,662,857,840,936,656]} 1. d4 Nf6 {[%emt 0:06:00]} 2. c4 {[%emt 0:01:30]} g6 {[%emt 0:00:30]} 3. Nc3 {[%emt 0:00:30]} d5 {[%emt 0:00:30]} 4. Nf3 {[%emt 0:00:00]} Bg7 {[%emt 0:01:30]} 5. Qb3 {[%emt 0:00:00]} dxc4 {[%emt 0:00:30]} 6. Qxc4 {[%emt 0:00:30]} O-O {[%emt 0:00:30]} 7. e4 {[%emt 0:00:30]} Nc6 {[%emt 0:00:30]} 8. Be2 {[%emt 0:01:30]} e5 {[%emt 0:01:30]} 9. d5 {[%emt 0:00:30]} Nd4 {[%emt 0:00:30]} 10. Nxd4 {[%emt 0:00:30]} exd4 {[%emt 0:00:30]} 11. Qxd4 {[%emt 0:00:30]} c6 {[%emt 0:00:30]} 12. Qc4 {[%emt 0:00:30]} b5 {[%emt 0:01:30]} 13. Qxc6 {[%emt 0:00:30]} Bd7 {[%emt 0:00:30]} 14. Qd6 {[%emt 0:00:00]} Re8 {[%emt 0:00:00]} 15. e5 {[%emt 0:01:00]} Ng4 {[%emt 0:31:00]} 16. e6 {[%emt 0:00:30]} fxe6 {[%emt 0:00:30]} 17. h3 {[%emt 0:04:30]} (17. Bxg4 exd5+ 18. Be2 Bxc3+ 19. bxc3 Rxe2+ $1 20. Kf1 Re8 $15) (17. Nxb5 $2 Be5 $1 $19) 17... Be5 {[%emt 0:18:30]} 18. Qb4 {[%emt 0:04:30]} Nf6 {[%emt 0:01:30]} 19. d6 {[%emt 0:05:30]} (19. Nxb5 $2 exd5 20. a4 a6 $19) (19. Bxb5 $2 Bxc3+ 20. bxc3 Nxd5 $19) 19... Bc6 {[%emt 0:04:30]} (19... Rc8 $1 $11 20. Bg5 (20. Nxb5 Rc2 $14) 20... Qb6) 20. Bg5 {[%emt 0:17:30]} ({But not} 20. Nxb5 Rb8 21. a4 Bxg2 $15) ({White should play} 20. O-O $1 $14) 20... Qd7 {[%emt 0:09:30] [#]} (20... Bxg2 $11 {remains equal.} 21. Rg1 Bd5) 21. Rd1 {[%emt 0:18:30]} ({Worse is} 21. Nxb5 Reb8 22. a4 Ne4 $17) (21. Bxb5 Bxb5 22. Nxb5 Rab8 $15) (21. O-O $1 $16) 21... Nd5 {[%emt 0:01:36]} (21... Bxg2 $11 22. Bxb5 Qb7) 22. Nxd5 $16 {[%emt 0:01:30]} exd5 {[%emt 0:00:07]} 23. Be7 {[%emt 0:01:30]} Rad8 {[%emt 0:10:07]} (23... a5 $16 24. Qc5 Rac8) 24. Bxd8 $18 {[%emt 0:01:30]} Bxd6 {[%emt 0:00:07]} 25. Qd2 {[%emt 0:05:30]} Rxd8 {[%emt 0:04:48]} 26. O-O {[%emt 0:00:30]} d4 {[%emt 0:01:46]} (26... Bc7 $142 27. f4 d4) 27. f4 {[%emt 0:03:30]} ({Weaker is} 27. Qxd4 Bh2+ 28. Kxh2 Qxd4 29. Rxd4 Rxd4 $16) 27... Bc5 {[%emt 0:02:27]} 28. Bf3 {[%emt 0:03:30]} Bxf3 {[%emt 0:00:30]} 29. Rxf3 {[%emt 0:00:30]} Re8 {[%emt 0:00:30]} 30. Kh1 {[%emt 0:00:30]} Qf7 $2 {[%emt 0:00:26]} (30... Qf5 31. Re1 Rxe1+ 32. Qxe1 Bd6) 31. f5 $18 {[%emt 0:06:30]} gxf5 {[%emt 0:00:30]} 32. Qg5+ {[%emt 0:00:30]} Qg6 {[%emt 0:00:30]} 33. Rxf5 {[%emt 0:00:30]} Bb6 {[%emt 0:00:30]} 34. Qxg6+ {[%emt 0:00:30]} hxg6 {[%emt 0:00:30]} 35. Rxb5 {[%emt 0:00:30]} Rd8 {[%emt 0:00:35]} 36. Rd3 {[%emt 0:01:30]} Kf7 {[%emt 0:00:30]} 37. g4 {[%emt 0:00:30]} Ke6 {[%emt 0:00:30]} 38. Kg2 {[%emt 0:00:30]} Rc8 {[%emt 0:00:00]} 39. a4 {[%emt 0:01:30]} Rc2+ {[%emt 0:00:00]} 40. Kf3 {[%emt 0:01:01]} Rh2 {[%emt 0:01:00]} 41. Kf4 {[%emt 0:01:24]} Kf6 {[%emt 0:00:14]} 42. Ke4 {[%emt 0:00:39]} Re2+ {[%emt 0:00:26]} 43. Kd5 {[%emt 0:01:27]} Re5+ {[%emt 0:00:07]} 44. Kc4 {[%emt 0:00:32]} Re6 {[%emt 0:00:59]} 45. a5 {[%emt 0:00:56]} Bc7 {[%emt 0:00:16]} 46. Rxd4 {[%emt 0:01:02]} 1-0

[Event "Turkish Cup 2022"]
[Site "Sakarya"]
[Date "2022.03.29"]
[Round "7.22"]
[White "Baltaci, Ismail Tarik"]
[Black "Lale, Omer Faruk"]
[Result "1/2-1/2"]
[ECO "B23"]
[WhiteElo "2033"]
[BlackElo "1771"]
[Annotator "NA"]
[PlyCount "163"]
[EventDate "2022.03.25"]
[EventType "swiss"]
[EventCountry "TUR"]
[SourceTitle "playchess.com"]
[Source "ChessBase"]
[SourceQuality "1"]
[TimeControl "5400+30"]

1. e4 c5 2. Nc3 e6 3. f4 d5 4. exd5 exd5 {[%emt 0:05:30]} 5. Bb5+ {[%emt 0:02:00]} Bd7 {[%emt 0:03:30]} 6. Qe2+ {[%emt 0:00:30]} Be7 {[%emt 0:13:30]} 7. Nxd5 {[%emt 0:02:30]} Nc6 {[%emt 0:00:30]} 8. Nf3 {[%emt 0:02:30]} a6 {[%emt 0:14:30]} 9. Bxc6 {[%emt 0:04:30]} Bxc6 {[%emt 0:00:30]} 10. Nxe7 {[%emt 0:00:30]} Nxe7 {[%emt 0:00:30]} 11. O-O {[%emt 0:02:30]} O-O {[%emt 0:00:30]} 12. Ne5 {[%emt 0:00:30]} Re8 {[%emt 0:00:30]} 13. Qf2 {[%emt 0:00:30]} f6 {[%emt 0:03:30]} 14. Ng4 {[%emt 0:11:30]} Nf5 {[%emt 0:13:30]} 15. a4 {[%emt 0:14:30]} h5 {[%emt 0:11:30]} 16. Ne3 {[%emt 0:00:30]} Nxe3 {[%emt 0:00:30]} 17. dxe3 {[%emt 0:00:00]} Qd5 {[%emt 0:00:30]} 18. Ra3 {[%emt 0:02:00]} c4 {[%emt 0:00:30]} 19. Qf3 {[%emt 0:01:30]} Qf5 {[%emt 0:08:30]} 20. Qh3 {[%emt 0:01:30]} Qxc2 {[%emt 0:05:53]} 21. Rc3 {[%emt 0:00:30]} Qe4 {[%emt 0:00:10]} 22. a5 {[%emt 0:02:30]} Rad8 {[%emt 0:00:41]} 23. Qf3 {[%emt 0:00:00]} Qf5 {[%emt 0:00:55]} 24. Qe2 {[%emt 0:00:00]} Qd5 {[%emt 0:02:22]} 25. Re1 {[%emt 0:02:30]} h4 {[%emt 0:00:54]} 26. Qxc4 {[%emt 0:00:30]} h3 {[%emt 0:01:02]} 27. gxh3 {[%emt 0:01:30]} Re4 {[%emt 0:01:51]} 28. Qxd5+ {[%emt 0:00:30]} Rxd5 {[%emt 0:00:01]} 29. Kf2 {[%emt 0:01:30]} Rh5 {[%emt 0:01:36]} 30. Kg3 {[%emt 0:00:30]} Rxa5 {[%emt 0:00:30]} 31. Rd1 {[%emt 0:00:30]} g5 {[%emt 0:01:32]} 32. Rd6 {[%emt 0:02:30]} Kf7 {[%emt 0:00:30]} 33. Bd2 {[%emt 0:01:30]} Rb5 {[%emt 0:01:17]} 34. Rcd3 {[%emt 0:00:30]} gxf4+ {[%emt 0:00:30]} 35. exf4 {[%emt 0:00:30]} Re2 {[%emt 0:00:04]} 36. Bc3 {[%emt 0:04:30]} Rg2+ {[%emt 0:00:30]} 37. Kh4 {[%emt 0:00:30]} Rf5 {[%emt 0:00:22]} 38. Rg3 {[%emt 0:07:30]} Rxf4+ {[%emt 0:00:30]} 39. Rg4 {[%emt 0:00:30]} Rfxg4+ {[%emt 0:02:46]} 40. hxg4 {[%emt 0:00:30]} Rxh2+ {[%emt 0:00:30]} 41. Kg3 {[%emt 0:00:30]} Rg2+ {[%emt 0:00:30]} 42. Kh4 {[%emt 0:00:30]} Rf2 {[%emt 0:00:30]} 43. Rd2 {[%emt 0:00:30]} Rf4 {[%emt 0:00:30]} 44. Rd4 {[%emt 0:00:30]} Rf3 {[%emt 0:01:59]} 45. Rd6 {[%emt 0:00:30]} Ke7 {[%emt 0:01:35]} 46. Rd4 {[%emt 0:03:30]} Ke6 {[%emt 0:03:20]} 47. g5 {[%emt 0:02:30]} fxg5+ {[%emt 0:00:23]} 48. Kxg5 {[%emt 0:00:30]} Bd5 {[%emt 0:00:16]} 49. Rf4 {[%emt 0:00:30]} Rg3+ {[%emt 0:00:26]} 50. Rg4 {[%emt 0:00:00]} Rxc3 {[%emt 0:01:09]} 51. bxc3 {[%emt 0:00:00]} a5 {[%emt 0:00:12]} 52. Kf4 {[%emt 0:01:30]} a4 {[%emt 0:00:40]} 53. Ke3 {[%emt 0:00:30]} a3 {[%emt 0:00:34]} 54. c4 {[%emt 0:02:30]} Bc6 {[%emt 0:02:29]} 55. Kd4 {[%emt 0:01:30]} a2 {[%emt 0:00:30]} 56. Rg1 {[%emt 0:00:00]} b5 {[%emt 0:00:30]} 57. Re1+ {[%emt 0:03:00]} Kd6 {[%emt 0:00:12]} 58. c5+ {[%emt 0:00:30]} Kc7 {[%emt 0:00:38]} 59. Ra1 {[%emt 0:00:30]} Bd7 {[%emt 0:00:30]} 60. Rxa2 {[%emt 0:00:00]} Be6 {[%emt 0:00:01]} 61. Ra6 {[%emt 0:00:00]} Bc4 {[%emt 0:00:23]} 62. Rf6 {[%emt 0:04:30]} Kb7 {[%emt 0:00:22]} 63. c6+ {[%emt 0:01:30]} Kb6 {[%emt 0:00:30]} 64. Ke5 {[%emt 0:00:30]} Kc7 {[%emt 0:00:30]} 65. Kd4 {[%emt 0:00:30]} Kb6 {[%emt 0:00:30]} 66. Rg6 {[%emt 0:00:30]} Be2 {[%emt 0:00:21]} 67. Rf6 {[%emt 0:00:30]} Bc4 {[%emt 0:00:00]} 68. Ke4 {[%emt 0:02:19]} Bb3 {[%emt 0:00:54]} 69. Kd4 {[%emt 0:02:58]} Bc4 {[%emt 0:00:04]} 70. Kc3 {[%emt 0:02:57]} Bd5 {[%emt 0:00:30]} 71. Kb4 {[%emt 0:00:30]} Bc4 {[%emt 0:00:50]} 72. Kc3 {[%emt 0:00:53]} Kc7 {[%emt 0:00:30]} 73. Kd4 {[%emt 0:01:17]} Kb6 {[%emt 0:00:30]} 74. Rg6 {[%emt 0:00:30]} Bb3 {[%emt 0:00:30]} 75. c7+ {[%emt 0:00:30]} Kxc7 {[%emt 0:00:30]} 76. Kc5 {[%emt 0:00:58]} Bc4 {[%emt 0:00:10]} 77. Rg7+ {[%emt 0:00:30]} Kd8 {[%emt 0:00:30]} 78. Kd6 {[%emt 0:00:30]} Ke8 {[%emt 0:00:00]} 79. Ra7 {[%emt 0:00:00]} Kf8 {[%emt 0:00:30]} 80. Ke5 {[%emt 0:00:21]} Ke8 {[%emt 0:00:00]} 81. Kd6 {[%emt 0:01:59]} Kf8 {[%emt 0:00:01]} 82. Re7 {[%emt 0:00:00]} 1/2-1/2

[Event "Turkish Cup 2022"]
[Site "Sakarya"]
[Date "2022.03.29"]
[Round "7.24"]
[White "Koc, Ilkay"]
[Black "Filizci, Kivanc"]
[Result "1-0"]
[ECO "E06"]
[WhiteElo "1995"]
[BlackElo "1658"]
[Annotator "TA"]
[PlyCount "58"]
[EventDate "2022.03.25"]
[EventType "swiss"]
[EventCountry "TUR"]
[SourceTitle "playchess.com"]
[Source "ChessBase"]
[SourceQuality "1"]
[TimeControl "5400+30"]

{[%evp 17,58,23,14,14,17,14,15,10,9,12,7,0,0,0,0,0,68,70,76,65,70,75,67,74,324,317,336,327,292,330,323,305,312,307,480,444,478,452,414,414,638,641,859]} 1. d4 e6 2. g3 Nf6 3. Nf3 d5 4. Bg2 {[%emt 0:04:30]} Be7 {[%emt 0:03:30]} 5. O-O {[%emt 0:00:30]} O-O {[%emt 0:00:30]} 6. c4 {[%emt 0:00:30]} dxc4 {[%emt 0:00:30]} 7. Qc2 {[%emt 0:00:00]} c6 {[%emt 0:02:30]} 8. a4 {[%emt 0:02:00]} a5 {[%emt 0:01:30]} 9. Qxc4 {[%emt 0:01:30]} Na6 {[%emt 0:03:30]} 10. Nc3 {[%emt 0:01:30] E06: Closed Catalan: Early deviations.} Nb4 {[%emt 0:05:30]} 11. Rd1 b6 12. Ne5 {[%emt 0:02:00] The position is equal.} Ba6 {[%emt 0:24:00]} 13. Qb3 {[%emt 0:00:30]} Rc8 {[%emt 0:00:30]} 14. e4 {[%emt 0:04:30]} c5 {[%emt 0:10:30]} 15. dxc5 {[%emt 0:07:30]} Qc7 {[%emt 0:01:30]} 16. Bf4 {[%emt 0:01:30][%cal Oe5d3] [#] aiming for Nd3!} Qxc5 $146 {[%emt 0:04:30]} (16... Bxc5 $11 17. Nb5 Qe7) ({Predecessor:} 16... g5 17. cxb6 Qc5 18. b7 Rc7 19. Be3 Qxe5 20. Bd4 Qxd4 21. Rxd4 e5 22. Rd2 Rxb7 {1-0 (31) Grigoryan,K (2555)-Gutierrez Olivares,D (2352) Barcelona 2017}) 17. Rac1 $14 {[%emt 0:01:30][%cal Oc3d5] Black must now prevent Nd5!} Bc4 {[%emt 0:05:30] Against Nd5} 18. Nxc4 {[%emt 0:13:30]} Qxc4 {[%emt 0:00:30]} 19. Qxc4 {[%emt 0:00:30]} Rxc4 {[%emt 0:00:30]} 20. e5 {[%emt 0:00:30]} Rxf4 {[%emt 0:19:33] Loses the game.} 21. gxf4 $18 {[%emt 0:00:30]} Nh5 {[%emt 0:00:09]} 22. Ne2 {[%emt 0:01:30][%cal Bc3e2,Be2g3,Bg3e4,Be4c5][%mdl 32]} g6 {[%emt 0:01:30]} 23. Rc7 {[%emt 0:00:30]} Bc5 {[%emt 0:00:31]} 24. Bf3 {[%emt 0:03:30]} Ng7 {[%emt 0:02:45]} 25. Ng3 {[%emt 0:00:00]} Nc2 {[%emt 0:01:04]} (25... Nf5 $142 26. Nxf5 gxf5) 26. Ne4 {[%emt 0:01:00]} Nd4 {[%emt 0:01:38]} 27. Nxc5 {[%emt 0:00:30]} Nxf3+ {[%emt 0:00:30]} 28. Kg2 {[%emt 0:00:00] [#] Nd7 is the strong threat.} Ne8 {[%emt 0:05:47]} (28... Nh4+ $142 29. Kh3 bxc5) 29. Rc8 {[%emt 0:00:00]} ({Not} 29. Kxf3 Nxc7 30. Nd7 Ra8 $16) 29... Ne1+ {[%emt 0:00:49] Weighted Error Value: White=0.02 (flawless) /Black=0.53} 1-0

[Event "Turkish Cup 2022"]
[Site "Sakarya"]
[Date "2022.03.29"]
[Round "7.25"]
[White "Akin, Kadir"]
[Black "Melik, Enes"]
[Result "1-0"]
[ECO "A00"]
[WhiteElo "1964"]
[BlackElo "1592"]
[Annotator "TA"]
[PlyCount "153"]
[EventDate "2022.03.25"]
[EventType "swiss"]
[EventCountry "TUR"]
[SourceTitle "playchess.com"]
[Source "ChessBase"]
[SourceQuality "1"]
[TimeControl "5400+30"]

{[%evp 82,153,0,0,0,-16,-23,-34,0,0,0,0,0,0,0,0,0,0,0,0,0,0,0,0,0,0,0,0,599,608,536,7,7,0,596,549,29975,892,871,865,749,644,640,494,512,460,1638,1461,29938,11235,2656,1619,1184,1418,29975,29975,29976,29977,29974,29977,29974,3007,29961,29960,29975,29975,2551,1870,29956,29953,29984,29985,29995,29996]} 1. Nh3 {[%emt 0:05:00]} f5 {[%emt 0:01:00]} 2. g3 {[%emt 0:00:30]} e6 {[%emt 0:00:30]} 3. f4 {[%emt 0:00:30]} Nf6 {[%emt 0:00:30]} 4. d3 {[%emt 0:00:00]} d5 {[%emt 0:03:30]} 5. Bg2 {[%emt 0:00:00]} Bd6 {[%emt 0:06:30]} 6. Nf2 {[%emt 0:01:30]} O-O {[%emt 0:05:30]} 7. O-O {[%emt 0:07:30]} e5 {[%emt 0:04:30]} 8. c4 {[%emt 0:16:30]} dxc4 {[%emt 0:26:30]} 9. dxc4 {[%emt 0:04:30]} e4 {[%emt 0:02:30]} 10. Be3 {[%emt 0:00:30]} Na6 {[%emt 0:03:30]} 11. Qc2 {[%emt 0:05:30]} Qe7 {[%emt 0:04:30]} 12. a3 {[%emt 0:07:30]} Bd7 {[%emt 0:06:30]} 13. Rd1 {[%emt 0:08:30]} Bc5 {[%emt 0:07:30]} 14. Bxc5 {[%emt 0:00:30]} Nxc5 {[%emt 0:00:30]} 15. Nc3 {[%emt 0:00:30]} Be6 {[%emt 0:09:04]} 16. b3 {[%emt 0:12:30]} Rad8 {[%emt 0:00:30]} 17. e3 {[%emt 0:00:30]} h5 {[%emt 0:03:42]} 18. Bf1 {[%emt 0:08:27]} h4 {[%emt 0:05:26]} 19. Be2 {[%emt 0:02:49]} Qf7 {[%emt 0:00:30]} 20. Nh3 {[%emt 0:00:30]} hxg3 {[%emt 0:00:30]} 21. hxg3 {[%emt 0:00:30]} Ng4 {[%emt 0:04:13]} 22. Bxg4 {[%emt 0:01:28]} fxg4 {[%emt 0:00:30]} 23. Ng5 {[%emt 0:00:30]} Qg6 {[%emt 0:00:30]} 24. b4 {[%emt 0:00:30]} Nd3 {[%emt 0:00:51]} 25. Ncxe4 {[%emt 0:08:05]} Bf5 {[%emt 0:00:17]} 26. Rxd3 {[%emt 0:02:10]} Bxe4 {[%emt 0:00:01]} 27. Nxe4 {[%emt 0:00:00]} Qxe4 {[%emt 0:00:30]} 28. Rad1 {[%emt 0:00:06]} c6 {[%emt 0:03:03]} 29. c5 {[%emt 0:00:58]} Rd5 {[%emt 0:01:00]} 30. Qg2 {[%emt 0:03:07]} Qxd3 {[%emt 0:00:56]} 31. Rxd3 {[%emt 0:00:30]} Rxd3 {[%emt 0:00:00]} 32. Qe4 {[%emt 0:00:36]} Rxa3 {[%emt 0:00:47]} 33. Qe6+ {[%emt 0:00:38]} Kh8 {[%emt 0:00:13]} 34. Qe7 {[%emt 0:02:33]} Kg8 {[%emt 0:00:30]} 35. Qe6+ {[%emt 0:00:30]} Kh8 {[%emt 0:00:00]} 36. Qxg4 {[%emt 0:00:03]} Rxe3 {[%emt 0:00:08]} 37. Kf2 {[%emt 0:00:30]} Rfe8 {[%emt 0:00:30]} 38. Qh3+ {[%emt 0:00:30]} Kg8 {[%emt 0:00:00]} 39. Qd7 {[%emt 0:01:13]} R3e7 {[%emt 0:00:23]} 40. Qd3 {[%emt 0:01:15]} Re2+ {[%emt 0:02:07]} 41. Kf1 {[%emt 0:00:37]} R2e3 {[%emt 0:00:30]} 42. Qc4+ {[%emt 0:00:30]} Kf8 {[%emt 0:00:30]} 43. Kg2 {[%emt 0:00:46]} R8e4 {[%emt 0:01:06]} 44. Qc1 {[%emt 0:00:30]} Re1 {[%emt 0:00:30]} 45. Qa3 {[%emt 0:00:30]} a6 {[%emt 0:00:30]} 46. Kf3 {[%emt 0:00:30]} Re7 {[%emt 0:00:08]} 47. Qd3 {[%emt 0:00:19]} Re8 {[%emt 0:00:30]} 48. Kg4 {[%emt 0:00:30]} R1e4 {[%emt 0:00:30]} 49. Qc3 {[%emt 0:00:30]} Re3 {[%emt 0:00:30]} 50. Qd2 {[%emt 0:00:30]} R3e4 {[%emt 0:00:30]} 51. Kg5 {[%emt 0:00:30]} Kf7 {[%emt 0:00:30]} 52. g4 {[%emt 0:00:30]} R8e7 {[%emt 0:00:30]} 53. f5 {[%emt 0:00:30]} R4e5 {[%emt 0:00:30]} 54. Qh2 {[%emt 0:00:30]} Re8 $2 {[%emt 0:00:33][%mdl 8192] [#]} (54... R7e6 $1 $11 {and Black has nothing to worry.}) 55. Qh5+ $1 $18 {[%emt 0:00:00]} Ke7 {[%emt 0:00:30]} 56. Qh7 $2 {[%emt 0:00:00]} ({Only move:} 56. Kg6 $18 Kd7 57. Kxg7) 56... Kf7 $1 $11 {[%emt 0:00:30]} 57. Qh5+ $2 {[%emt 0:00:28][%mdl 8192]} (57. Qh1 $11) 57... Ke7 $1 $18 {[%emt 0:00:00]} 58. Kg6 {[%emt 0:00:00]} Rg8 {[%emt 0:00:05]} 59. Qg5+ {[%emt 0:00:00]} (59. Qh2 $142 Re4 60. Qc7+ Ke8 61. Qc8+ Ke7 62. Qxb7+ Kd8 63. Qb8+ Kd7 64. Qd6+ Ke8 65. Qxc6+ Kd8 66. Qxe4) 59... Kd7 $18 {[%emt 0:01:18]} 60. Qf4 {[%emt 0:01:08]} Rge8 {[%emt 0:00:30]} 61. Qd4+ {[%emt 0:00:30]} Kc8 {[%emt 0:00:23]} 62. Kxg7 {[%emt 0:02:13]} Re4 {[%emt 0:00:30]} 63. Qd1 {[%emt 0:00:30]} Rxb4 {[%emt 0:00:38]} (63... R4e7+ $142 64. Kf6 Re4) 64. f6 $18 {[%emt 0:00:00]} Rf4 {[%emt 0:00:31]} 65. g5 {[%emt 0:00:00]} Rd8 {[%emt 0:00:31]} 66. Qc1 {[%emt 0:00:58]} Rd7+ {[%emt 0:00:30]} 67. Kg6 {[%emt 0:00:01]} Rf2 {[%emt 0:00:42]} 68. Qe3 {[%emt 0:00:30]} Rf1 {[%emt 0:00:30]} 69. Qe2 {[%emt 0:00:00]} Rf4 {[%emt 0:00:11]} 70. Qe8+ {[%emt 0:00:10]} Rd8 {[%emt 0:00:30]} 71. Qe6+ {[%emt 0:00:00]} (71. f7 $142 Rf1 72. Kh5 Rh1+ 73. Kg4 Rg1+ 74. Kf3 Rf1+ 75. Kg2 Rfd1 76. g6 R1d2+ 77. Kh3 R2d3+ 78. Kh4 R3d4+ 79. Kg5) 71... Rd7 $18 {[%emt 0:00:19]} 72. f7 {[%emt 0:00:12]} a5 {[%emt 0:00:15]} 73. Qe8+ {[%emt 0:00:37]} Rd8 {[%emt 0:00:08]} 74. Qe3 {[%emt 0:00:00]} Rb4 {[%emt 0:00:55]} 75. Qe6+ {[%emt 0:00:19]} Kc7 {[%emt 0:00:44]} 76. Qe7+ {[%emt 0:00:30]} Rd7 {[%emt 0:00:30]} 77. Qe5+ {[%emt 0:00:00]} 1-0